Cogmind - Beta 13 X1 @@@ ROGUE MODE // 2023.10.15 @ 12:19:59 Player: f3-rnm Result: Destroyed by as-64385 with Assembled Focal Cannon Performance ------------- Evolutions (3) 1500 Regions Visited (11) 2200 Robots Destroyed (183) 915 Value Destroyed (6244) 6244 Prototype IDs (19) 380 Alien Tech Used (0) 0 Bonus (3666) 3666 TOTAL SCORE: 14905 Bonus ------- High Alert Combat Kills 1312 Follower Combat Kills 214 Entered Garrisons 200 Destroyed Z-Imprinter 1000 Triggered Deep Caves Wall 500 Exposed GOLEM Chamber 500 Friendly Fire -60 Cogmind --------- Core Integrity 0/700 Matter 151/300 Energy 100/100 System Corruption 0% Temperature Cool (18) Movement Walking (210) Ox1 Location -7/Deep Caves Parts ------- > --- POWER (2) -------- (None) > --- PROPULSION (4) --- Zionite Composite Leg I > --- UTILITY (5) ------ Experimental Heat Sink High-capacity Storage Unit Zionite Weapon Casing > --- WEAPON (2) ------- Missile Launcher > --- INVENTORY (20) --- Improved Deuterium Engine Improved Heat Sink Experimental Heat Sink High-capacity Storage Unit Zionite Biocell (600) Zionite Biocell (600) Zionite Biocell (600) High-capacity Matter Pod (200) Hacking Drone Bay (1/1) GOLEM Unit Arc Projector Arc Projector Shock Maul Peak State ------------ > --- POWER ------------ Cooled Deuterium Engine Zionite Light DM Reactor > --- PROPULSION ------- Zionite Composite Leg I Zionite Composite Leg I Zionite Composite Leg I > --- UTILITY ---------- Experimental Heat Sink High-capacity Storage Unit Zionite Weapon Casing Zionite Heavy Carapace > --- WEAPON ----------- Arc Projector Arc Projector > --- INVENTORY -------- Improved Deuterium Engine Improved Heat Sink High-capacity Storage Unit Zionite Biocell Zionite Biocell Zionite Biocell High-capacity Matter Pod Transport Network Coupler Encrypted Comm Array Transmission Jammer Zionite Weapon Casing Zionite Light Carapace Zionite Heavy Carapace Hacking Drone Bay Gatling Laser Missile Launcher Precision Rocket Launcher Shock Maul CR-A16's Pointy Stick [Rating: 74] Favorites ----------- Power Cooled Deuterium Engine Engine Cooled Deuterium Engine Power Core Light Nuclear Core Reactor Zionite Light DM Reactor Propulsion Medium Treads Treads Medium Treads Leg Zionite Composite Leg I Utility High-capacity Storage Unit Device Improved Heat Sink Storage High-capacity Storage Unit Processor Machine Analyzer Protection Hardened Medium Armor Plating Weapon Gatling Laser Energy Gun Gatling Laser Ballistic Gun Assault Rifle Ballistic Cannon Flak Cannon Launcher Precision Rocket Launcher Impact Weapon Shock Maul Slashing Weapon Makeshift Axe Build | -11 -10 -10 -9 -9 -9 -8 -7 -7 -7 -7 -7 ------- Run | Jun Mat Min Mat Sto Gar Mat Fac Low Low Zio Dee Slots Evolved 6 | . . . 2 . . 2 2 . . . . Power 1 | . . . . . . . 1 . . . . Propulsion 2 | . . . 1 . . 1 . . . . . Utility 3 | . . . 1 . . 1 1 . . . . Weapon . | . . . . . . . . . . . . Parts Attached 183 | 6 7 7 13 18 13 37 15 14 8 6 39 Power 16 | 1 1 1 . 2 . 3 5 . . . 3 Engine 14 | 1 1 . . 2 . 3 5 . . . 2 Core 1 | . . 1 . . . . . . . . . Reactor 1 | . . . . . . . . . . . 1 Propulsion 47 | 2 2 1 5 6 4 17 . 1 1 1 7 Treads 43 | 2 2 1 5 6 4 17 . 1 1 1 3 Leg 4 | . . . . . . . . . . . 4 Wheel . | . . . . . . . . . . . . Hover . | . . . . . . . . . . . . Flight . | . . . . . . . . . . . . Utility 58 | 1 3 1 5 4 3 10 4 2 1 2 22 Device 17 | . . . . 1 2 3 1 1 1 2 6 Storage 6 | 1 1 . 1 1 . 1 . . . . 1 Processor 3 | . 1 . 1 . . . 1 . . . . Hackware . | . . . . . . . . . . . . Protection 32 | . 1 1 3 2 1 6 2 1 . . 15 Artifact . | . . . . . . . . . . . . Weapon 62 | 2 1 4 3 6 6 7 6 11 6 3 7 Energy Gun 22 | 1 . . . . . 2 4 7 3 1 4 Energy Cannon . | . . . . . . . . . . . . Ballistic Gun 8 | 1 1 4 . 1 . . 1 . . . . Ballistic Cannon 13 | . . . 3 2 4 4 . . . . . Launcher 9 | . . . . 1 2 1 . 1 1 . 3 Special Weapon . | . . . . . . . . . . . . Impact Weapon 6 | . . . . 1 . . 1 2 . 2 . Slashing Weapon 4 | . . . . 1 . . . 1 2 . . Piercing Weapon . | . . . . . . . . . . . . Special Melee Weapon . | . . . . . . . . . . . . Unidentified Prototypes 17 | . . . . 5 . 1 3 . . 1 7 Parts Lost 45 | . . 4 . . 2 8 . 3 . . 28 Power 6 | . . 1 . . . . . . . . 5 Propulsion 14 | . . 1 . . . 4 . . . . 9 Utility 18 | . . . . . 2 2 . 2 . . 12 Weapon 7 | . . 2 . . . 2 . 1 . . 2 Highest Loss Streak 9 | . . 4 . . 1 2 . 3 . . 9 To Critical Strikes 1 | . . . . . . . . . . . 1 Average Slot Usage (%) 97 | . 97 91 98 99 99 98 100 99 100 100 81 Engine 11 | . 14 7 . 10 11 9 15 15 15 15 10 Treads 28 | . 27 21 32 33 33 35 30 30 30 30 8 Leg 1 | . . . . . . . . . . . 12 Device 9 | . . . . 4 10 11 15 14 15 15 10 Storage 9 | . 14 14 11 11 11 9 7 7 7 7 7 Processor 4 | . 8 2 10 6 . . 6 7 7 7 . Protection 9 | . 3 11 11 11 11 13 7 6 7 7 10 Energy Gun 7 | . 7 . . . . . 13 14 13 14 13 Ballistic Gun 2 | . 20 28 2 . . . . . . . . Ballistic Cannon 6 | . . . 18 11 21 17 . . . . . Naked Turns . | . . . . . . . . . . . . Heaviest Build 87 | 12 29 41 67 63 67 72 79 80 87 83 84 Greatest Support 104 | 40 40 40 66 66 66 104 104 104 104 104 104 Greatest Overweight (x) 20 | . 1 2 2 . 1 1 . . . . 20 Average Overweight (x) . | . . . . . . . . . . . . Largest Inventory Capacity 20 | 8 15 15 20 20 20 20 20 20 20 20 20 Average Capacity 18 | 7 10 15 17 20 20 20 20 20 20 20 20 Most Carried 20 | 5 13 15 20 20 20 20 20 20 20 20 20 Average Carried 18 | 1 8 14 16 19 19 19 19 19 19 19 18 Final Capacity 20 | 8 15 15 20 20 20 20 20 20 20 20 20 Final Carried 20 | 1 12 15 20 20 20 20 20 20 20 20 14 Class Distribution -------------------- 84% | Mutant 11% | Scavenger-Mutant 3% | Commander-Mutant Dominant Class ---------------- Mutant | -10/Materials Mutant | -10/Mines Scavenger-Mutant | -9/Materials Mutant | -9/Storage Mutant | -9/Garrison Mutant | -8/Materials Mutant | -7/Factory Mutant | -7/Lower Caves Mutant | -7/Lower Caves Mutant | -7/Zion Mutant | -7/Deep Caves Resources | -11 -10 -10 -9 -9 -9 -8 -7 -7 -7 -7 -7 ----------- Run | Jun Mat Min Mat Sto Gar Mat Fac Low Low Zio Dee Matter Collected 5774 | 229 514 190 462 364 579 2421 349 138 96 94 338 Remotely 1075 | . . . . 116 41 918 . . . . . Salvage Created 7069 | . 803 127 363 937 739 1841 208 795 318 . 938 Parts 332 | . 48 4 20 41 52 103 15 23 8 . 18 Haulers Intercepted 15 | . 2 . 2 6 . 5 . . . . . Recyclers Shooed 6 | . 1 . 2 . . 3 . . . . . Parts Field Recycled . | . . . . . . . . . . . . Retrieved Matter . | . . . . . . . . . . . . Parts Self-Destructed 17 | . . . . . . . . 14 3 . . Prevented . | . . . . . . . . . . . . Kills | -11 -10 -10 -9 -9 -9 -8 -7 -7 -7 -7 -7 ------- Run | Jun Mat Min Mat Sto Gar Mat Fac Low Low Zio Dee Combat Hostiles Destroyed 173 | . 11 9 6 8 28 40 3 15 1 . 52 Melee 1 | . . . . 1 . . . . . . . Guns 46 | . 11 9 1 . . . 2 11 1 . 11 Cannons 71 | . . . 5 6 23 37 . . . . . AOE 49 | . . . . . 5 3 . 3 . . 38 Classes Destroyed 22 | . 6 2 2 3 1 1 2 2 . . 3 Worker 10 | . . . . 4 . 6 . . . . . Builder 10 | . 1 . 2 3 . 3 1 . . . . Tunneler 3 | . . . . 1 . 1 1 . . . . Hauler 15 | . 2 . 2 6 . 5 . . . . . Recycler 11 | . 2 . 1 2 . 6 . . . . . Mechanic 2 | . 1 . . . . . 1 . . . . Operator 1 | . . . . 1 . . . . . . . Watcher 7 | . 1 . 1 2 . 3 . . . . . Swarmer 11 | . . 3 . . 2 3 . 3 . . . Grunt 65 | . 11 . 2 4 19 24 . 4 1 . . Brawler 2 | . . . . . 1 1 . . . . . Duelist 3 | . . . 1 . . 2 . . . . . Protector 2 | . . . . . . 2 . . . . . Sentry 22 | . . . 3 4 6 8 1 . . . . Hunter 2 | . . . . . . . 1 1 . . . Programmer 1 | . . . . . . . 1 . . . . Z-Light 7 | . . . . . . . . . . . 7 Samaritan 7 | . . . . . . . . 4 3 . . Assembler 1 | . . . . . . . . . . . 1 Assembled 47 | . . 6 . . . . . . . . 41 Golem 3 | . . . . . . . . . . . 3 Thug 1 | . . . . . . . . 1 . . . Savage 1 | . . . . . . . . 1 . . . Butcher 3 | . . . . . . . . 3 . . . Mutant 2 | . . . . . . . . 2 . . . Best Kill Streak 36 | . 3 6 6 6 6 6 2 4 1 . 36 Combat Bots Only 35 | . 3 6 2 4 6 5 1 4 1 . 35 Max Kills in Single Turn 12 | . 1 2 2 1 2 2 2 3 1 . 12 Gunslinging 1 | . . 1 . . . . . . . . . Exploded 12 | . . . . . 2 1 . 3 . . 12 Melee 1 | . . . . 1 . . . . . . . Uniques/NPCs Destroyed 1 | . . . . . . . . . . . 1 Z-Imprinter (-7/Deep Caves) Combat | -11 -10 -10 -9 -9 -9 -8 -7 -7 -7 -7 -7 -------- Run | Jun Mat Min Mat Sto Gar Mat Fac Low Low Zio Dee Damage Taken 11309 | . 553 747 227 399 1092 2348 234 764 . . 4945 Core 1399 | . 90 148 23 71 110 248 11 . . . 698 Absorbed by Shields 436 | . . . . . . . . . . . 436 Redirected to Shielding 379 | . 6 . . . . . . . . . 373 Ignored by Resistances 56 | . . 33 23 . . . . . . . . Regen/Repaired (Parts) 258 | . 133 . . . . 125 . . . . . Core Remaining (%) 51 | 100 . 4 . . 49 54 . . . . . Volleys Fired 502 | . 59 28 34 25 66 142 11 42 9 . 86 Largest 2 | . 2 2 2 2 2 2 2 2 2 . 2 Hottest 160 | . 70 40 88 88 88 88 160 160 160 . 160 Shots Fired 949 | . 118 56 68 26 119 284 22 82 11 . 163 Gun 449 | . 118 56 16 . . . 22 81 7 . 149 Cannon 472 | . . . 52 26 114 280 . . . . . Launcher 28 | . . . . . 5 4 . 1 4 . 14 Special . | . . . . . . . . . . . . Kinetic 617 | . 73 56 68 26 114 280 . . . . . Thermal 218 | . 45 . . . . . 22 81 7 . 63 Explosive 28 | . . . . . 5 4 . 1 4 . 14 Electromagnetic 86 | . . . . . . . . . . . 86 Robot Hit Streak 22 | . 7 4 8 10 11 9 8 22 15 . 12 Robot Miss Streak 15 | . 5 6 12 5 5 15 2 4 4 . 5 Penetration Max . | . . . . . . . . . . . . Secondary Targets 7 | . 1 1 . . . . . 3 . . 2 Max Gunslinging Chain 1 | . 1 1 . . . . . 1 . . 1 Shots Hit Robots 663 | . 70 23 50 44 65 213 19 67 8 . 104 Core Hits 639 | . 35 16 45 30 66 208 13 61 11 . 154 Critical Kills 3 | . . 1 . 2 . . . . . . . Critical Parts Destroyed 4 | . 1 . . 3 . . . . . . . Critical Strikes 15 | . 3 1 . 5 2 4 . . . . . Burn 2 | . 2 . . . . . . . . . . Destroy 2 | . 1 1 . . . . . . . . . Blast 6 | . . . . . 2 4 . . . . . Smash 5 | . . . . 5 . . . . . . . Melee Attacks 58 | . . . . 43 . . 2 4 3 6 . Impact 37 | . . . . 28 . . 2 1 . 6 . Slashing 21 | . . . . 15 . . . 3 3 . . Piercing . | . . . . . . . . . . . . Sneak Attacks 20 | . . . . 16 . . . 1 3 . . Combat Hostiles . | . . . . . . . . . . . . Follow-up Attacks . | . . . . . . . . . . . . Damage Inflicted 19004 | . 904 279 999 2306 1904 4681 414 1963 515 . 5039 Guns 5173 | . 904 279 155 . . . 414 1630 107 . 1684 Cannons 6931 | . . . 844 394 1512 4181 . . . . . Explosions 4741 | . . . . . 392 500 . 271 223 . 3355 Melee 2159 | . . . . 1912 . . . 62 185 . . Ramming . | . . . . . . . . . . . . Kinetic 7904 | . 539 279 999 394 1512 4181 . . . . . Thermal 3773 | . 365 . . . . . 414 1630 107 . 1257 Explosive 4690 | . . . . . 392 500 . 271 223 . 3304 Electromagnetic 478 | . . . . . . . . . . . 478 Impact 1328 | . . . . 1328 . . . . . . . Slashing 831 | . . . . 584 . . . 62 185 . . Piercing . | . . . . . . . . . . . . Highest Corruption 1 | . 1 1 . . . . 1 1 1 1 . Average Corruption 1 | . 1 1 . . . . 1 1 1 1 . Corruption Purged . | . . . . . . . . . . . . Corruption Blocked . | . . . . . . . . . . . . Effects 32 | . 1 5 . . . . 1 8 14 3 . Message Errors 10 | . 1 . . . . . . 3 5 1 . Matter Fused 5 | . . 1 . . . . . 1 1 2 . Heat Flow Errors 3 | . . 1 . . . . . 2 . . . Energy Discharges 7 | . . 1 . . . . 1 1 4 . . Data Loss (minor) 3 | . . 1 . . . . . . 2 . . Data Loss (major) 1 | . . 1 . . . . . . . . . Misfires 1 | . . . . . . . . . 1 . . Alerts 1 | . . . . . . . . . 1 . . Weapon Failures 1 | . . . . . . . . 1 . . . Overload Shots . | . . . . . . . . . . . . Overflow Damage 1003 | . . . . 782 10 10 . 6 58 . 137 Projectiles 10 | . . . . . . 10 . . . . . Explosions 153 | . . . . . 10 . . 6 . . 137 Melee 840 | . . . . 782 . . . . 58 . . Knockbacks 128 | . . . 16 12 15 85 . . . . . Impact 5 | . . . . 5 . . . . . . . Kinetic 118 | . . . 15 6 15 82 . . . . . Secondary 5 | . . . 1 1 . 3 . . . . . Self-Inflicted Damage 268 | . . . . . . 114 . . . . 154 Shots 5 | . . . . . . 1 . . . . 4 Rammed . | . . . . . . . . . . . . Targets Rammed . | . . . . . . . . . . . . Kicked . | . . . . . . . . . . . . Crushed . | . . . . . . . . . . . . Highest Temperature 240 | . 159 146 195 40 216 112 6 240 48 . 168 Average Temperature 51 | . 49 49 58 15 98 21 3 60 22 . 64 Received Heat Transfer 3342 | . 324 . 84 141 372 1233 12 235 . . 941 Siege Activations . | . . . . . . . . . . . . Robots Corrupted 3 | . . . . . . . . . . . 3 Combat Hostiles 3 | . . . . . . . . . . . 3 Parts Fried 6 | . . . . 6 . . . . . . . Impact Corruptions 14 | . . . . 14 . . . . . . . Robots Melted 2 | . . . . . . . 1 1 . . . Combat Hostiles 2 | . . . . . . . 1 1 . . . Parts Melted 14 | . . . . . . . 6 3 . . 5 Heat Transferred 7915 | . 1221 . . . . . 900 3700 250 . 1844 Parts Sabotaged . | . . . . . . . . . . . . Parts Stolen . | . . . . . . . . . . . . Parts Stripped . | . . . . . . . . . . . . Power Chain Reactions 1 | . . . . . . . . . . . 1 Missiles Intercepted . | . . . . . . . . . . . . Alert | -11 -10 -10 -9 -9 -9 -8 -7 -7 -7 -7 -7 ------- Run | Jun Mat Min Mat Sto Gar Mat Fac Low Low Zio Dee Peak Influence 1501 | . 255 85 191 395 1157 1501 653 . . . . Initial 653 | . . . . 29 198 563 653 . . . . Average 462 | . 104 43 52 249 661 1039 569 . . . . Maximum Alert Level 4 | . 1 . . 1 4 4 2 . . . . Low Security (%) 34 | 100 86 100 100 17 1 . . . . . . Level 1 22 | . 13 . . 82 25 . . . . . . Level 2 17 | . . . . . 23 17 100 . . . . Level 3 15 | . . . . . 44 38 . . . . . Level 4 10 | . . . . . 4 43 . . . . . Level 5 . | . . . . . . . . . . . . High Security . | . . . . . . . . . . . . Max Security . | . . . . . . . . . . . . Squads Dispatched 18 | . 4 1 1 2 . 8 2 . . . . Investigation 5 | . 2 1 . . . 1 1 . . . . Extermination 1 | . . . . . . . 1 . . . . Reinforcement 7 | . 2 . 1 2 . 2 . . . . . Assault 5 | . . . . . . 5 . . . . . Garrison . | . . . . . . . . . . . . Intercept . | . . . . . . . . . . . . Searches Triggered . | . . . . . . . . . . . . Construction Impeded 1 | . . . . . . 1 . . . . . Haulers Reinforced . | . . . . . . . . . . . . Active Scanning Responses . | . . . . . . . . . . . . Cargo Convoy Interrupts . | . . . . . . . . . . . . Stealth | -11 -10 -10 -9 -9 -9 -8 -7 -7 -7 -7 -7 --------- Run | Jun Mat Min Mat Sto Gar Mat Fac Low Low Zio Dee Distress Signals 10 | . 1 . 4 2 . 3 . . . . . Communications Jammed . | . . . . . . . . . . . . Distress Signals . | . . . . . . . . . . . . Times Spotted 255 | . 22 9 13 23 27 79 3 15 2 . 62 Peak Tracking Total 37 | . 4 5 4 4 5 10 2 4 2 . 37 Tactical Retreats 16 | . . . 1 1 . 11 . . . . 3 Traps | -11 -10 -10 -9 -9 -9 -8 -7 -7 -7 -7 -7 ------- Run | Jun Mat Min Mat Sto Gar Mat Fac Low Low Zio Dee Traps Triggered 10 | . 3 . 1 . 5 1 . . . . . Indirectly . | . . . . . . . . . . . . Trap Hack Attempts . | . . . . . . . . . . . . Triggered . | . . . . . . . . . . . . Disarmed . | . . . . . . . . . . . . Reprogrammed . | . . . . . . . . . . . . Reused . | . . . . . . . . . . . . Traps Extracted . | . . . . . . . . . . . . Installed . | . . . . . . . . . . . . Triggered . | . . . . . . . . . . . . Machines | -11 -10 -10 -9 -9 -9 -8 -7 -7 -7 -7 -7 ---------- Run | Jun Mat Min Mat Sto Gar Mat Fac Low Low Zio Dee Machines Disabled 15 | . . . . 4 5 4 . 1 . . 1 Max in Single Turn 2 | . . . . 1 1 2 . 1 . . 1 Garrison Relay 3 | . . . . . 3 . . . . . . Machines Repaired . | . . . . . . . . . . . . Machines Sabotaged . | . . . . . . . . . . . . Overloaded Fab Kills . | . . . . . . . . . . . . Hacking | -11 -10 -10 -9 -9 -9 -8 -7 -7 -7 -7 -7 --------- Run | Jun Mat Min Mat Sto Gar Mat Fac Low Low Zio Dee Machines Accessed 27 | . 3 1 1 11 3 5 3 . . . . Terminals 22 | . 2 . 1 10 3 4 2 . . . . Fabricators . | . . . . . . . . . . . . Repair Stations 2 | . 1 . . . . 1 . . . . . Recycling Units . | . . . . . . . . . . . . Scanalyzers . | . . . . . . . . . . . . Garrison Access 2 | . . . . 1 . . 1 . . . . Total Hacks 48 | . 8 1 1 16 6 11 5 . . . . Successful 27 | . 5 1 1 10 3 6 1 . . . . Failed 21 | . 3 . . 6 3 5 4 . . . . Catastrophic 5 | . 1 . . 2 . . 2 . . . . Database Lockouts . | . . . . . . . . . . . . Manual 22 | . 6 . 1 9 . 3 2 . . 1 . Terminals 36 | . 5 . 1 14 6 8 2 . . . . Fabricators . | . . . . . . . . . . . . Repair Stations 6 | . 3 . . . . 3 . . . . . Recycling Units . | . . . . . . . . . . . . Scanalyzers . | . . . . . . . . . . . . Garrison Access 5 | . . . . 2 . . 3 . . . . Terminal Hacks 19 | . 3 1 1 6 3 4 1 . . . . Robot Analysis 2 | . 2 . . . . . . . . . . Prototype ID Bank 1 | . 1 . . . . . . . . . . Open Door 6 | . . 1 . 4 1 . . . . . . Branch Access Points 2 | . . . 1 . . . 1 . . . . Emergency Access Points 1 | . . . . . 1 . . . . . . Terminal Index 2 | . . . . 1 . 1 . . . . . Alert Level 3 | . . . . 1 . 2 . . . . . Hauler Manifests 1 | . . . . . . 1 . . . . . Patrol Navigation 1 | . . . . . 1 . . . . . . Fabricator Hacks . | . . . . . . . . . . . . Repair Station Hacks 4 | . 2 . . . . 2 . . . . . Scan Component 2 | . 1 . . . . 1 . . . . . Repair 2 | . 1 . . . . 1 . . . . . Recycling Unit Hacks . | . . . . . . . . . . . . Scanalyzer . | . . . . . . . . . . . . Garrison Access Hacks 1 | . . . . 1 . . . . . . . Unlock Access 1 | . . . . 1 . . . . . . . Unauthorized Hacks 3 | . . . . 3 . . . . . . . Terminals 3 | . . . . 3 . . . . . . . Botnet 3 | . . . . 3 . . . . . . . Fabricators . | . . . . . . . . . . . . Repair Stations . | . . . . . . . . . . . . Recycling Units . | . . . . . . . . . . . . Scanalyzers . | . . . . . . . . . . . . Garrison Access . | . . . . . . . . . . . . Data Cores Recovered . | . . . . . . . . . . . . Used . | . . . . . . . . . . . . Hacking Detections 14 | . 3 . . 4 2 3 2 . . . . Full Trace Events 1 | . . . . . . . 1 . . . . Feedback Events . | . . . . . . . . . . . . Feedback Blocked . | . . . . . . . . . . . . Robot Schematics Acquired 4 | . . . . . . . . . . 4 . Robots Built . | . . . . . . . . . . . . Authchips . | . . . . . . . . . . . . Time . | . . . . . . . . . . . . Total Robot Build Rating . | . . . . . . . . . . . . Part Schematics Acquired 14 | . . . . . . . . . . 14 . Parts Built . | . . . . . . . . . . . . Authchips . | . . . . . . . . . . . . Time . | . . . . . . . . . . . . Total Part Build Rating . | . . . . . . . . . . . . Parts Repaired 2 | . 1 . . . . 1 . . . . . Time 51 | . 13 . . . . 38 . . . . . Parts Recycled . | . . . . . . . . . . . . Recycled Matter . | . . . . . . . . . . . . Retrieved Matter . | . . . . . . . . . . . . Retrieved Components . | . . . . . . . . . . . . Parts Scanalyzed . | . . . . . . . . . . . . Part Schematics Acquired . | . . . . . . . . . . . . Parts Damaged . | . . . . . . . . . . . . Bothacking | -11 -10 -10 -9 -9 -9 -8 -7 -7 -7 -7 -7 ------------ Run | Jun Mat Min Mat Sto Gar Mat Fac Low Low Zio Dee Used RIF Installer . | . . . . . . . . . . . . Robots Hacked . | . . . . . . . . . . . . Non-combat . | . . . . . . . . . . . . Combat . | . . . . . . . . . . . . Robot Hacks Applied . | . . . . . . . . . . . . Relay Couplers Released 11 | . . . . . 11 . . . . . . Machine Destruction 11 | . . . . . 11 . . . . . . Fabnet Peak Effective % . | . . . . . . . . . . . . Robots Rewired . | . . . . . . . . . . . . Allies Hacked . | . . . . . . . . . . . . Hacks Repelled . | . . . . . . . . . . . . Allies | -11 -10 -10 -9 -9 -9 -8 -7 -7 -7 -7 -7 -------- Run | Jun Mat Min Mat Sto Gar Mat Fac Low Low Zio Dee Total Allies 14 | . . . . 10 . . . . . 4 . Largest Group 10 | . . . . 10 . . . . . 4 4 Highest-Rated Group 88 | . . . . 88 . . . . . 73 73 Highest-Rated Ally 25 | . . . . 16 . . . . . 25 25 Total Orders . | . . . . . . . . . . . . Ally Attacks 84 | . . . . 68 . . . . . . 16 Total Damage 698 | . . . . 532 . . . . . . 166 Kills 14 | . . . . 13 . . . . . . 1 Allies Corrupted . | . . . . . . . . . . . . Allies Melted . | . . . . . . . . . . . . Intel | -11 -10 -10 -9 -9 -9 -8 -7 -7 -7 -7 -7 ------- Run | Jun Mat Min Mat Sto Gar Mat Fac Low Low Zio Dee Robot Analysis Total 2 | . 2 . . . . . . . . . . Derelict Logs Recovered 6 | . . 1 . . . . . 1 2 2 . Drone Launches . | . . . . . . . . . . . . Drone Recoveries . | . . . . . . . . . . . . Exploration | -11 -10 -10 -9 -9 -9 -8 -7 -7 -7 -7 -7 ------------- Run | Jun Mat Min Mat Sto Gar Mat Fac Low Low Zio Dee Turns Passed 16245 | 70 1247 698 872 1912 1283 2059 870 1871 2181 1610 1572 Spaces Moved 8256 | 51 619 297 400 988 601 924 486 1039 1322 949 580 Core 23 | 21 . . . . . . . . . . 2 Treads 7888 | 30 619 297 400 988 601 924 486 1039 1322 949 233 Legs 345 | . . . . . . . . . . . 345 Wheels . | . . . . . . . . . . . . Hover . | . . . . . . . . . . . . Flight . | . . . . . . . . . . . . Fastest Speed 50 | 50 160 160 160 160 160 156 162 162 162 162 110 Average Speed 167 | 114 160 201 180 160 173 158 162 162 162 162 209 Slowest Speed 1050 | 160 240 320 320 160 240 240 162 162 162 162 1050 Overloaded Moves . | . . . . . . . . . . . . Propulsion Burnouts . | . . . . . . . . . . . . Robots Hopped . | . . . . . . . . . . . . Cave-ins Triggered . | . . . . . . . . . . . . Exploration Rate (%) 66 | 3 87 72 32 95 86 75 13 95 96 83 62 Regions Visited 11 Branch Regions 6 Pre-discovered Areas 5 | . . . . . . . . 1 1 3 . Known Exits Taken 3 | . . . 1 1 . . 1 . . . . Unknown Exits Taken 7 | 1 1 1 . . . 1 . 1 1 1 . Scrap Searched 12 | . . 1 . . . . . 4 3 4 . Spaces Dug 35 | . . . . 9 . . 2 2 20 2 . Terrain Destroyed 249 | . . . . 9 18 87 2 21 83 2 27 Melee 15 | . . . . 9 . . 2 2 . 2 . Projectile 16 | . . . . . . 16 . . . . . AOE 218 | . . . . . 18 71 . 19 83 . 27 Terrain Rammed . | . . . . . . . . . . . . Walls Destroyed . | . . . . . . . . . . . . Machines Disabled . | . . . . . . . . . . . . Actions | -11 -10 -10 -9 -9 -9 -8 -7 -7 -7 -7 -7 --------- Run | Jun Mat Min Mat Sto Gar Mat Fac Low Low Zio Dee Total 9654 | 63 759 348 492 1235 725 1258 543 1117 1345 1008 761 Wait 370 | . 48 3 15 115 31 85 5 9 . 42 17 Move 8245 | 50 618 296 399 987 600 923 485 1038 1321 948 580 Hop . | . . . . . . . . . . . . Pick Up 154 | 7 19 9 17 16 7 32 11 6 1 3 26 Fast Attach 24 | . 1 1 4 8 1 5 . 2 1 . 1 Attach 67 | 6 3 4 5 2 3 14 3 2 . . 25 Detach 2 | . . . . 1 . . 1 . . . . Swap 92 | . 3 2 4 8 9 18 12 10 7 6 13 Drop 140 | . 8 5 14 30 8 39 13 4 3 3 13 Fire 502 | . 59 28 34 25 66 142 11 42 9 . 86 Melee 58 | . . . . 43 . . 2 4 3 6 . Ram . | . . . . . . . . . . . . Kick . | . . . . . . . . . . . . Crush . | . . . . . . . . . . . . Escape Stasis . | . . . . . . . . . . . . Rewire . | . . . . . . . . . . . . Trap . | . . . . . . . . . . . . Miscellaneous . | . . . . . . . . . . . . Route ------- -11/Junkyard -10/Materials (discovered 5 exits: *Mat x2 / *Min x2 / [*Sub]) -10/Mines -9/Materials (discovered 5 exits: Mat x2 / Min x2 / *Sto) -9/Storage (discovered 2 exits: *Mat / Gar) -9/Garrison (discovered 3 exits: *Mat x3) -8/Materials (discovered 3 exits: *Fac x3) -7/Factory (discovered 2 exits: *Low x2) -7/Lower Caves -7/Lower Caves (discovered 2 exits: [*Fac] / *Zio) -7/Zion (discovered 2 exits: [*Dee] / [*Pro]) -7/Deep Caves History --------- Turn | Location | Event 2 | -11/Junkyard | Discovered new exit (range 16) 71 | -11/Junkyard | Entered Materials 314 | -10/Materials | Build established: Mutant 340 | -10/Materials | Discovered new exit (range 16) 675 | -10/Materials | Discovered new exit (range 15) 936 | -10/Materials | Discovered new exit (range 15) 1005 | -10/Materials | Discovered new exit (range 11) 1161 | -10/Materials | Repaired Lgt. Treads 1301 | -10/Materials | Discovered new exit (range 4) 1318 | -10/Materials | Entered Mines 1346 | -10/Mines | Core integrity fell below 50% 1377 | -10/Mines | Assembled infested the area 1387 | -10/Mines | A weapon hastily lodged in a ceiling crevice suddenly fell to the ground 1448 | -10/Mines | Met a Derelict shopkeep closing up shop 1605 | -10/Mines | Learned 8 Materials zone layouts 1687 | -10/Mines | Core integrity fell below 20% 1713 | -10/Mines | Lost 4 parts (1p1n2w) 1968 | -10/Mines | Discovered new exit (range 15) 2016 | -10/Mines | Entered Materials 2016 | -9/Materials | Evolved 2 slots: Propulsion x1, Utility x1 2017 | -9/Materials | Identified exit to Materials 2052 | -9/Materials | Build established: Scavenger-Mutant 2340 | -9/Materials | Discovered new exit (range 4) 2380 | -9/Materials | Identified exit to Mines 2380 | -9/Materials | Identified exit to Storage 2888 | -9/Materials | Entered Storage 3023 | -9/Storage | Assisted by bots powering up and referring to "LRC-V3" 3326 | -9/Storage | Build established: Commander-Mutant 3611 | -9/Storage | Discovered exit to Materials (range 15) 3903 | -9/Storage | Build established: Mutant 4009 | -9/Storage | Identified exit to Garrison 4800 | -9/Storage | Entered Garrison 5111 | -9/Garrison | Garrison Relay disabled 5138 | -9/Garrison | Triggered checkpoint 5272 | -9/Garrison | Triggered checkpoint 5372 | -9/Garrison | Discovered exit to Materials (range 13) 5447 | -9/Garrison | Garrison Relay disabled 5563 | -9/Garrison | Discovered exit to Materials (range 9) 5580 | -9/Garrison | Triggered checkpoint 5659 | -9/Garrison | Garrison Relay disabled 5758 | -9/Garrison | Triggered checkpoint 5790 | -9/Garrison | Triggered checkpoint 5959 | -9/Garrison | Discovered exit to Materials (range 12) 6018 | -9/Garrison | Triggered checkpoint 6052 | -9/Garrison | Core integrity fell below 50% 6083 | -9/Garrison | Entered Materials 6083 | -8/Materials | Evolved 2 slots: Propulsion x1, Utility x1 6441 | -8/Materials | Build established: Scavenger-Mutant 6483 | -8/Materials | First assault squad dispatched 6632 | -8/Materials | Discovered new exit (range 13) 6758 | -8/Materials | Build established: Mutant 7051 | -8/Materials | Discovered new exit (range 7) 7730 | -8/Materials | Repaired Flak Cannon 8084 | -8/Materials | Discovered new exit (range 6) 8142 | -8/Materials | Entered Factory 8142 | -7/Factory | Evolved 2 slots: Power x1, Utility x1 8378 | -7/Factory | Discovered new exit (range 15) 8777 | -7/Factory | Identified exit to Lower Caves 9012 | -7/Factory | Entered Lower Caves 9071 | -7/Lower Caves | Met a Warlord Commander 9072 | -7/Lower Caves | Learned location of Warlord (-4) 9082 | -7/Lower Caves | Found Encrypted Comm Array 9371 | -7/Lower Caves | Learned 4 Factory zone layouts 9446 | -7/Lower Caves | Attacked by a delusional Derelict stockpiling parts 10202 | -7/Lower Caves | Attacked by a faux Warlord 10256 | -7/Lower Caves | Lost 3 parts (2u1w) 10641 | -7/Lower Caves | Discovered new exit (range 11) 10883 | -7/Lower Caves | Entered another Lower Caves area 10898 | -7/Lower Caves | Learned Factory terminal intel 10944 | -7/Lower Caves | Encountered a Warlord checkpoint 11369 | -7/Lower Caves | Build established: Scavenger-Mutant 11373 | -7/Lower Caves | Learned location of Zion (-7) 11401 | -7/Lower Caves | Discovered new exit (range 10) 11709 | -7/Lower Caves | Build established: Mutant 12442 | -7/Lower Caves | Discovered new exit (range 9) 13064 | -7/Lower Caves | Entered Zion 13202 | -7/Zion | Discovered new exit (range 15) 13238 | -7/Zion | Gained Derelict followers 13369 | -7/Zion | System corruption cleaned by Quarantine Array 13466 | -7/Zion | Received a visual enhancement algorithm 13656 | -7/Zion | Learned Factory garrison access intel 13832 | -7/Zion | Learned 8 Factory zone layouts 13978 | -7/Zion | Found CR-A16's Pointy Stick 14187 | -7/Zion | Given the Hacking Drone Bay 14190 | -7/Zion | Found Prototype Device 14217 | -7/Zion | Identified Hacking Drone Bay 14279 | -7/Zion | Gained Derelict followers 14580 | -7/Zion | Learned location of Data Miner (-6) 14656 | -7/Zion | Discovered new exit (range 5) 14658 | -7/Zion | Saw the warning signs outside the Deep Caves entrance 14674 | -7/Zion | Entered Deep Caves 14674 | -7/Deep Caves | Accompanied by 4 allies 14839 | -7/Deep Caves | Attacked by Z-Imprinter 14890 | -7/Deep Caves | Destroyed Z-Imprinter 14904 | -7/Deep Caves | Lost 4 parts (2p2n) 14927 | -7/Deep Caves | Found Prototype Protection 14928 | -7/Deep Caves | Identified Zio. Weapon Casing 15067 | -7/Deep Caves | Z-Facility disabled 15113 | -7/Deep Caves | Found Prototype Protection 15132 | -7/Deep Caves | Lost 9 parts (4n5u) 15187 | -7/Deep Caves | Identified Zio. Heavy Carapace 15208 | -7/Deep Caves | Found Zio. Weapon Casing 15358 | -7/Deep Caves | Lost 3 parts (1p1n1w) 15387 | -7/Deep Caves | Found Zio. Heavy Carapace 15402 | -7/Deep Caves | Found Zio. Weapon Casing 16063 | -7/Deep Caves | Spotted as-60926 16099 | -7/Deep Caves | Core integrity fell below 50% 16132 | -7/Deep Caves | Destroyed as-60926 16151 | -7/Deep Caves | Lost 6 parts (6u) 16172 | -7/Deep Caves | Found GOLEM Unit 16222 | -7/Deep Caves | Triggered Deep Caves wall 16222 | -7/Deep Caves | Spotted AS-20369 16226 | -7/Deep Caves | Exposed GOLEM chamber 16237 | -7/Deep Caves | Core integrity fell below 20% 16243 | -7/Deep Caves | Spotted AS-25071 16245 | -7/Deep Caves | Destroyed AS-20369 16246 | -7/Deep Caves | Destroyed by as-64385 with Assembled Focal Cannon Last Messages --------------- 16234_ as-63595 destroyed. 16235_ as-50016 GOLEM Unit beginning Prototype Leg integration. 16235_ as-76218 destroyed. 16236_ Destroyed Asb. Hover Unit. 16236_ as-55979 destroyed. 16236_ as-45428 destroyed. 16236_ as-63371 destroyed. 16237_ GOLEM Unit springs to life. 16238_ as-42074 GOLEM Unit beginning Prototype Leg integration. 16238_ as-39176 GOLEM Unit beginning Prototype Leg integration. 16238_ GOLEM Unit springs to life. 16239_ as-74994 GOLEM Unit beginning Prototype Leg integration. 16239_ GOLEM Unit springs to life. 16240_ as-25189 GOLEM Unit beginning Prototype Leg integration. 16241_ GOLEM Unit springs to life. 16241_ as-81724 destroyed. 16241_ as-58421 destroyed. 16242_ as-99782 GOLEM Unit beginning Prototype Leg integration. 16245_ GOLEM Unit springs to life. 16246_ as-52069 GOLEM Unit beginning Prototype Leg integration. Map ----- +----------------------------------------------------+ | ????????????????????????????????????????? | | ????????????????????????????????????????? | | ????????????????????????????????????????? | | ????????????????????????????????????????? | | ?????????????????????????????????????#??? | | ??????????????????????????????????? #?# | | ??????????????????????????????????? ## | | ?????????????????????????????????? | | ???????????????????????????????????? | | ????????????????????????????????????? | | ?????????????? ??????????????????? | | ???????????? = ??????????????????# | | ????????? = #????????????????# | | ???????A s ??????????????# | | ????? a = M#????????????# | | ?????a = ????????????? | | ???? ] #????????????? | | ???? ##???????????# | | ???? a ! #???######?## | | ????? gs #??## ### | | ??????? ! #?## | | ??????### ! #?# | | ??????#G!G ! ]] #?# # | | ??????#G!G #?# #### | | ??????#GGG g #?# ##??# | | ?????????" @ ] ! ! ### #???# | | ????????"" ]% ## #???# | | ????????# g ! !! a ## ##???# | | ????????" b g ## ##????# | | ????????" ] # #????? | | ????????" ! ! ! #????? | | ????????""" [ ##?????# | | ????????" ] ##??????? | | ????????"" ####???????? | | ????????" % #??????????? | | ????????"" % "#??????????? | | ????????" ; ##??????????? | | ????????" ###; ;; ;# ##???????????? | | ????????""" ###?#; ;# "###????????????? | | ?????????" ???##### ##??????????????? | | ?????????######????????##???????????????? | | | | | | | | | | | | | | | | | | | +----------------------------------------------------+ Best States ------------- Heat Dissipation 88 Energy Generation 57 Energy Capacity 1120 Matter Stores 300 Matter Capacity 300 Sight Range 16 Terrain Scan Density 10 Armor Coverage 1200 Resistance: KI 20 Resistance: EM 15 Propulsion Shielding 33 Weapon Shielding 100 Evasion (%) 55 Recoil Reduction 4 Item Schematics ----------------- Component Analysis Suite | -7/Zion | Archive Lgt. Angular Momentum Engine | -7/Zion | Archive Hvy. Battle Rifle | -7/Zion | Archive Drone Bay | -7/Zion | Archive Remote Datajack | -7/Zion | Archive Microactuators | -7/Zion | Archive Mak. Terrain Scan Processor | -7/Zion | Archive Imp. Reaction Control System | -7/Zion | Archive Imp. Field Recycling Unit | -7/Zion | Archive Proton Cannon | -7/Zion | Archive Imp. Shock Absorption System | -7/Zion | Archive KE Penetrator | -7/Zion | Archive Beamcaster | -7/Zion | Archive Force Field | -7/Zion | Archive Robot Schematics ------------------ Y-54 Guardian | -7/Zion | Archive K-01 Serf | -7/Zion | Archive X-62 Marksman | -7/Zion | Archive G-73 Enforcer | -7/Zion | Archive Fabricated ------------ Nothing Alien Tech Used ----------------- None Achievements -------------- Quantum Hacking Challenges ------------ None Game ------ Seed CannonVisualBlade Manual? 0 Play Time 01:18:57 Cumulative 102.2 hours Start 2023.10.15 @ 10:27:57 End 2023.10.15 @ 12:19:59 Sessions 3 Manual Loads 0 Difficulty Rogue Special Mode None Game No. 103 Rogue 67 Adventurer 36 Explorer 0 Win Type - Total 7 Types 2/0/5/0/0/0/0/0/0 Lore% 50 Gallery% 72 Achievement% 61 Wizard Run 0 Options --------- ASCII 0 Keyboard 0 Movement Mouse Keybinds 0 Fullscreen 1 Font 18/SmallcapsGlow Map View 76x50 Tactical HUD 1 Map Filters NONE Filters NONE Steam 1 RUN: 82b82fa9-c05e-4138-9ad9-0c0bd66d3c9d